[Event "Early-Titled-Tuesday-Blitz-December-26-2023"]
[Site "Chess.com"]
[Date "2023.12.26"]
[Round "4"]
[White "Kotofeyca"]
[Black "PabloZarnicki"]
[Result "0-1"]
[WhiteElo "2424"]
[BlackElo "2651"]
[TimeControl "180+1"]
[EndTime "8:38:19 PST"]
[Termination "PabloZarnicki won on time"]

1. d4 {[%clk 0:03:00.9]} 1... Nf6 {[%clk 0:02:58.1]} 2. c4 {[%clk 0:03:00.1]}
2... g6 {[%clk 0:02:57.6]} 3. f3 {[%clk 0:03:00.1]} 3... Bg7 {[%clk 0:02:58.1]}
4. e4 {[%clk 0:02:59.9]} 4... O-O {[%clk 0:02:58.9]} 5. Nc3 {[%clk 0:03:00.6]}
5... d6 {[%clk 0:02:59.4]} 6. Be3 {[%clk 0:03:01.2]} 6... b6 {[%clk 0:02:59.9]}
7. Bd3 {[%clk 0:03:00.7]} 7... Nfd7 {[%clk 0:03:00.3]} 8. Nge2 {[%clk
0:03:00.9]} 8... c5 {[%clk 0:03:00.8]} 9. d5 {[%clk 0:02:57.4]} 9... Ne5 {[%clk
0:03:00.8]} 10. b3 {[%clk 0:02:55.6]} 10... Nxd3+ {[%clk 0:02:59.6]} 11. Qxd3
{[%clk 0:02:56.5]} 11... b5 {[%clk 0:03:00.1]} 12. Rb1 {[%clk 0:02:20.4]} 12...
bxc4 {[%clk 0:02:47.1]} 13. bxc4 {[%clk 0:02:21.3]} 13... Nd7 {[%clk 0:02:47.4]}
14. f4 {[%clk 0:02:19.7]} 14... Ba6 {[%clk 0:02:46.2]} 15. O-O {[%clk
0:02:17.8]} 15... Qa5 {[%clk 0:02:41.2]} 16. Nb5 {[%clk 0:01:56.4]} 16... Rab8
{[%clk 0:02:31.4]} 17. Nec3 {[%clk 0:01:46.8]} 17... Nb6 {[%clk 0:02:23]} 18.
Bd2 {[%clk 0:01:28.7]} 18... Bxc3 {[%clk 0:00:16.8]} 19. Bxc3 {[%clk 0:01:00.1]}
19... Qa4 {[%clk 0:00:17.1]} 20. Rfc1 {[%clk 0:00:14.9]} 20... Nxc4 {[%clk
0:00:13.1]} 21. Nxa7 {[%clk 0:00:09.5]} 21... Na3 {[%clk 0:00:09.3]} 22. Qd2
{[%clk 0:00:04.5]} 22... Nxb1 {[%clk 0:00:07.6]} 23. Rxb1 {[%clk 0:00:05.4]}
23... Rxb1+ {[%clk 0:00:06.9]} 24. Kf2 {[%clk 0:00:05]} 24... Qxe4 {[%clk
0:00:06.9]} 25. Nc6 {[%clk 0:00:04.2]} 25... Rf1+ {[%clk 0:00:06.9]} 26. Kg3
{[%clk 0:00:03.1]} 26... Be2 {[%clk 0:00:06.5]} 27. Bb2 {[%clk 0:00:01.3]} 27...
f6 {[%clk 0:00:05.8]} 0-1

[Event "Early-Titled-Tuesday-Blitz-December-26-2023"]
[Site "Chess.com"]
[Date "2023.12.26"]
[Round "4"]
[White "biostatistician"]
[Black "Aygehovit1992"]
[Result "1-0"]
[WhiteElo "2600"]
[BlackElo "2750"]
[TimeControl "180+1"]
[EndTime "8:38:22 PST"]
[Termination "biostatistician won on time"]

1. d4 {[%clk 0:03:00.4]} 1... Nf6 {[%clk 0:02:54.7]} 2. Nf3 {[%clk 0:03:00.7]}
2... g6 {[%clk 0:02:54.9]} 3. c4 {[%clk 0:03:01.1]} 3... Bg7 {[%clk 0:02:54.4]}
4. Nc3 {[%clk 0:03:02]} 4... d6 {[%clk 0:02:55]} 5. e4 {[%clk 0:03:02]} 5... O-O
{[%clk 0:02:54.2]} 6. Be2 {[%clk 0:03:02.9]} 6... Na6 {[%clk 0:02:53.9]} 7. O-O
{[%clk 0:03:01.9]} 7... e5 {[%clk 0:02:54.5]} 8. Bg5 {[%clk 0:03:01.3]} 8... h6
{[%clk 0:02:46.4]} 9. Bh4 {[%clk 0:03:00.6]} 9... Qe8 {[%clk 0:02:40.9]} 10.
Bxf6 {[%clk 0:03:00.1]} 10... Bxf6 {[%clk 0:02:40.7]} 11. c5 {[%clk 0:03:00.7]}
11... exd4 {[%clk 0:02:37.8]} 12. Nd5 {[%clk 0:03:00.4]} 12... Bd8 {[%clk
0:02:35.4]} 13. Bxa6 {[%clk 0:02:58.8]} 13... bxa6 {[%clk 0:02:35.2]} 14. Qxd4
{[%clk 0:02:59.3]} 14... Bg4 {[%clk 0:02:22.9]} 15. cxd6 {[%clk 0:02:52.4]}
15... cxd6 {[%clk 0:02:19.7]} 16. Rfe1 {[%clk 0:02:31.4]} 16... Bxf3 {[%clk
0:02:18.5]} 17. gxf3 {[%clk 0:02:32.3]} 17... Qe6 {[%clk 0:02:07.9]} 18. Rad1
{[%clk 0:02:23.1]} 18... Rc8 {[%clk 0:01:46.1]} 19. b3 {[%clk 0:02:07.7]} 19...
Qh3 {[%clk 0:00:59.1]} 20. Rd3 {[%clk 0:01:50.7]} 20... Rc2 {[%clk 0:00:54.7]}
21. f4 {[%clk 0:01:48.6]} 21... Qh4 {[%clk 0:00:48.7]} 22. Rg3 {[%clk 0:01:46]}
22... Rxa2 {[%clk 0:00:44.5]} 23. f5 {[%clk 0:01:40.5]} 23... g5 {[%clk
0:00:44]} 24. Ree3 {[%clk 0:01:09.8]} 24... Re8 {[%clk 0:00:37.3]} 25. Kg2
{[%clk 0:00:37.7]} 25... a5 {[%clk 0:00:25.7]} 26. Qxa7 {[%clk 0:00:31.8]} 26...
Rd2 {[%clk 0:00:11.1]} 27. Qd7 {[%clk 0:00:27]} 27... Rf8 {[%clk 0:00:11.2]} 28.
f6 {[%clk 0:00:21.2]} 28... Qh5 {[%clk 0:00:02.9]} 29. Qxd6 {[%clk 0:00:13.9]}
29... g4 {[%clk 0:00:01.5]} 30. Ne7+ {[%clk 0:00:12.7]} 1-0

[Event "Early-Titled-Tuesday-Blitz-December-26-2023"]
[Site "Chess.com"]
[Date "2023.12.26"]
[Round "4"]
[White "chessdiamant"]
[Black "Aradhya2000"]
[Result "1-0"]
[WhiteElo "2578"]
[BlackElo "2701"]
[TimeControl "180+1"]
[EndTime "8:38:25 PST"]
[Termination "chessdiamant won by checkmate"]

1. d4 {[%clk 0:02:59.8]} 1... d5 {[%clk 0:02:59.8]} 2. Nf3 {[%clk 0:02:59.3]}
2... Nf6 {[%clk 0:02:59.7]} 3. Bf4 {[%clk 0:02:59.5]} 3... c5 {[%clk 0:02:59.6]}
4. e3 {[%clk 0:02:59]} 4... Nc6 {[%clk 0:02:59.9]} 5. c3 {[%clk 0:02:53]} 5...
Qb6 {[%clk 0:02:59.1]} 6. Qb3 {[%clk 0:02:41.4]} 6... c4 {[%clk 0:02:58.9]} 7.
Qxb6 {[%clk 0:02:42]} 7... axb6 {[%clk 0:02:59.7]} 8. Nbd2 {[%clk 0:02:37.3]}
8... Bf5 {[%clk 0:02:59.3]} 9. a3 {[%clk 0:02:36.8]} 9... e6 {[%clk 0:02:59.2]}
10. Nh4 {[%clk 0:02:35.8]} 10... Be4 {[%clk 0:02:44.6]} 11. f3 {[%clk
0:02:27.8]} 11... Bd3 {[%clk 0:02:43.7]} 12. Bxd3 {[%clk 0:01:58.6]} 12... cxd3
{[%clk 0:02:44.6]} 13. g4 {[%clk 0:01:58.3]} 13... Na5 {[%clk 0:02:16.2]} 14. b4
{[%clk 0:01:28.6]} 14... Nc4 {[%clk 0:02:14.9]} 15. Nxc4 {[%clk 0:01:29.1]}
15... dxc4 {[%clk 0:02:15.8]} 16. a4 {[%clk 0:01:11.1]} 16... Nd5 {[%clk
0:02:14]} 17. Kd2 {[%clk 0:01:10.7]} 17... Nxb4 {[%clk 0:02:03.7]} 18. cxb4
{[%clk 0:00:52.9]} 18... Bxb4+ {[%clk 0:02:04.6]} 19. Kc1 {[%clk 0:00:52.7]}
19... c3 {[%clk 0:02:05.3]} 20. e4 {[%clk 0:00:52.9]} 20... Rc8 {[%clk
0:02:02.1]} 21. Rd1 {[%clk 0:00:49.8]} 21... g5 {[%clk 0:01:46.9]} 22. Bxg5
{[%clk 0:00:39.8]} 22... h5 {[%clk 0:01:46.3]} 23. Rxd3 {[%clk 0:00:34.8]} 23...
hxg4 {[%clk 0:01:46]} 24. fxg4 {[%clk 0:00:35.7]} 24... Rg8 {[%clk 0:01:38.5]}
25. Nf3 {[%clk 0:00:30.7]} 25... f6 {[%clk 0:01:38.9]} 26. Bxf6 {[%clk 0:00:30]}
26... Rxg4 {[%clk 0:01:39.6]} 27. Ra2 {[%clk 0:00:25.3]} 27... Rc7 {[%clk
0:00:41.3]} 28. d5 {[%clk 0:00:23.3]} 28... exd5 {[%clk 0:00:40.8]} 29. exd5
{[%clk 0:00:22.9]} 29... Rf7 {[%clk 0:00:39.7]} 30. Re2+ {[%clk 0:00:22.4]}
30... Kf8 {[%clk 0:00:39.9]} 31. Ne5 {[%clk 0:00:19.6]} 31... Rg1+ {[%clk
0:00:35.8]} 32. Rd1 {[%clk 0:00:19.9]} 32... Rxd1+ {[%clk 0:00:26.1]} 33. Kxd1
{[%clk 0:00:20.8]} 33... Rc7 {[%clk 0:00:19.2]} 34. Kc2 {[%clk 0:00:20.9]} 34...
Kg8 {[%clk 0:00:18.2]} 35. Rg2+ {[%clk 0:00:17.6]} 35... Kh7 {[%clk 0:00:18.1]}
36. Rg4 {[%clk 0:00:18.2]} 36... Rc5 {[%clk 0:00:04.7]} 37. Rh4+ {[%clk
0:00:18.2]} 37... Kg8 {[%clk 0:00:05.2]} 38. Rh8# {[%clk 0:00:18.7]} 1-0

[Event "Early-Titled-Tuesday-Blitz-December-26-2023"]
[Site "Chess.com"]
[Date "2023.12.26"]
[Round "4"]
[White "Hoshka"]
[Black "Pakarma"]
[Result "0-1"]
[WhiteElo "2035"]
[BlackElo "2460"]
[TimeControl "180+1"]
[EndTime "8:38:27 PST"]
[Termination "Pakarma won on time"]

1. d4 {[%clk 0:03:00]} 1... Nf6 {[%clk 0:02:59.6]} 2. c4 {[%clk 0:02:59.4]} 2...
d6 {[%clk 0:02:57.4]} 3. Nf3 {[%clk 0:02:58.7]} 3... g6 {[%clk 0:02:57.3]} 4. g3
{[%clk 0:02:58.7]} 4... Bg7 {[%clk 0:02:57.3]} 5. Bg2 {[%clk 0:02:59.3]} 5...
O-O {[%clk 0:02:57.6]} 6. O-O {[%clk 0:02:59.8]} 6... a6 {[%clk 0:02:58.1]} 7.
Nc3 {[%clk 0:02:58.1]} 7... Nbd7 {[%clk 0:02:58]} 8. h3 {[%clk 0:02:54.9]} 8...
e5 {[%clk 0:02:58]} 9. e4 {[%clk 0:02:52.4]} 9... b5 {[%clk 0:02:56]} 10. dxe5
{[%clk 0:02:43.8]} 10... dxe5 {[%clk 0:02:55.7]} 11. cxb5 {[%clk 0:02:33.3]}
11... axb5 {[%clk 0:02:54.7]} 12. Qc2 {[%clk 0:02:24]} 12... c6 {[%clk
0:02:52.5]} 13. Be3 {[%clk 0:02:14.2]} 13... Qe7 {[%clk 0:02:47.9]} 14. a3
{[%clk 0:01:58.7]} 14... Bb7 {[%clk 0:02:34.5]} 15. b4 {[%clk 0:01:42.6]} 15...
c5 {[%clk 0:02:33.3]} 16. bxc5 {[%clk 0:01:31.1]} 16... Nxc5 {[%clk 0:02:32.8]}
17. Nd5 {[%clk 0:01:30.5]} 17... Bxd5 {[%clk 0:01:54.9]} 18. Bxc5 {[%clk
0:01:29.3]} 18... Bxe4 {[%clk 0:01:50]} 19. Bxe7 {[%clk 0:01:28.3]} 19... Bxc2
{[%clk 0:01:49.5]} 20. Bxf8 {[%clk 0:01:28.3]} 20... Rxf8 {[%clk 0:01:39.9]} 21.
Nxe5 {[%clk 0:01:25.6]} 21... Ne4 {[%clk 0:01:32.1]} 22. Nd7 {[%clk 0:01:00]}
22... Bxa1 {[%clk 0:01:05.1]} 23. Nxf8 {[%clk 0:00:58.9]} 23... Bb2 {[%clk
0:00:54.2]} 24. Re1 {[%clk 0:00:39.8]} 24... Nc3 {[%clk 0:00:38]} 25. Nd7 {[%clk
0:00:19.3]} 25... Bxa3 {[%clk 0:00:33.3]} 26. Nf6+ {[%clk 0:00:17.1]} 26... Kg7
{[%clk 0:00:33.7]} 27. Nd5 {[%clk 0:00:17.2]} 27... b4 {[%clk 0:00:21.4]} 28.
Re8 {[%clk 0:00:08.7]} 28... Nxd5 {[%clk 0:00:17.3]} 29. Bxd5 {[%clk 0:00:08]}
29... b3 {[%clk 0:00:18.2]} 30. Rb8 {[%clk 0:00:07.5]} 30... b2 {[%clk
0:00:18.2]} 31. Rb7 {[%clk 0:00:07]} 31... b1=Q+ {[%clk 0:00:17.6]} 0-1

[Event "Early-Titled-Tuesday-Blitz-December-26-2023"]
[Site "Chess.com"]
[Date "2023.12.26"]
[Round "4"]
[White "hsmile"]
[Black "laskakid"]
[Result "1/2-1/2"]
[WhiteElo "2086"]
[BlackElo "2371"]
[TimeControl "180+1"]
[EndTime "8:38:27 PST"]
[Termination "Game drawn by repetition"]

1. d4 {[%clk 0:03:00.9]} 1... d5 {[%clk 0:02:59.6]} 2. Nc3 {[%clk 0:03:00.7]}
2... Nf6 {[%clk 0:02:58.8]} 3. Bg5 {[%clk 0:03:00.4]} 3... Nbd7 {[%clk
0:02:57.4]} 4. e3 {[%clk 0:02:55.2]} 4... h6 {[%clk 0:02:48]} 5. Bh4 {[%clk
0:02:51.2]} 5... c6 {[%clk 0:02:48.2]} 6. f4 {[%clk 0:02:47.8]} 6... Qb6 {[%clk
0:02:42.2]} 7. Rb1 {[%clk 0:02:45]} 7... e6 {[%clk 0:02:37.6]} 8. a3 {[%clk
0:02:41.2]} 8... c5 {[%clk 0:02:21.6]} 9. Nf3 {[%clk 0:02:37.6]} 9... Bd6 {[%clk
0:02:16.5]} 10. Bd3 {[%clk 0:02:09.1]} 10... cxd4 {[%clk 0:02:11.9]} 11. Nxd4
{[%clk 0:01:55.9]} 11... Bxf4 {[%clk 0:01:57.6]} 12. exf4 {[%clk 0:01:44.5]}
12... Qxd4 {[%clk 0:01:57.1]} 13. Qf3 {[%clk 0:01:31.2]} 13... O-O {[%clk
0:01:36.9]} 14. Bf2 {[%clk 0:01:26.2]} 14... Ne5 {[%clk 0:01:30.5]} 15. Bxd4
{[%clk 0:01:03.3]} 15... Nxf3+ {[%clk 0:01:30]} 16. gxf3 {[%clk 0:01:04.2]}
16... Nh5 {[%clk 0:01:22.5]} 17. f5 {[%clk 0:00:57.4]} 17... e5 {[%clk
0:01:15.6]} 18. Bc5 {[%clk 0:00:41.1]} 18... Rd8 {[%clk 0:01:07.4]} 19. O-O
{[%clk 0:00:30.2]} 19... Nf4 {[%clk 0:01:07]} 20. Rbe1 {[%clk 0:00:20.9]} 20...
Nxd3 {[%clk 0:00:56.9]} 21. cxd3 {[%clk 0:00:21.8]} 21... d4 {[%clk 0:00:47.8]}
22. Ne4 {[%clk 0:00:20.1]} 22... Bxf5 {[%clk 0:00:46.2]} 23. Rc1 {[%clk
0:00:17.9]} 23... f6 {[%clk 0:00:38.1]} 24. Rc2 {[%clk 0:00:17.3]} 24... b6
{[%clk 0:00:32.6]} 25. Bb4 {[%clk 0:00:16.5]} 25... a5 {[%clk 0:00:31.5]} 26.
Bd2 {[%clk 0:00:15.9]} 26... Rd7 {[%clk 0:00:23.9]} 27. Rfc1 {[%clk 0:00:15.1]}
27... Kf7 {[%clk 0:00:22.1]} 28. Rc7 {[%clk 0:00:14.8]} 28... Rd8 {[%clk
0:00:22.2]} 29. Rxd7+ {[%clk 0:00:14.6]} 29... Rxd7 {[%clk 0:00:22.3]} 30. Rc6
{[%clk 0:00:14.3]} 30... Bxe4 {[%clk 0:00:20.2]} 31. fxe4 {[%clk 0:00:14.4]}
31... Rb7 {[%clk 0:00:20.3]} 32. Kf2 {[%clk 0:00:14.5]} 32... g6 {[%clk
0:00:19.8]} 33. Kf3 {[%clk 0:00:14.4]} 33... h5 {[%clk 0:00:19.2]} 34. Bc1
{[%clk 0:00:13.8]} 34... Ke7 {[%clk 0:00:19.4]} 35. Bd2 {[%clk 0:00:13.4]} 35...
b5 {[%clk 0:00:18.8]} 36. Bxa5 {[%clk 0:00:12.6]} 36... Rb8 {[%clk 0:00:17.3]}
37. Bb4+ {[%clk 0:00:12.1]} 37... Kf7 {[%clk 0:00:16.2]} 38. Rc7+ {[%clk
0:00:11.7]} 38... Kg8 {[%clk 0:00:16.5]} 39. Rc6 {[%clk 0:00:11.1]} 39... Kf7
{[%clk 0:00:16.8]} 40. Rc7+ {[%clk 0:00:10.9]} 40... Kg8 {[%clk 0:00:17.1]} 41.
Rc6 {[%clk 0:00:11.2]} 41... Kf7 {[%clk 0:00:17.5]} 1/2-1/2

[Event "Early-Titled-Tuesday-Blitz-December-26-2023"]
[Site "Chess.com"]
[Date "2023.12.26"]
[Round "4"]
[White "krasavetc"]
[Black "Aleksandar-Topalov"]
[Result "1-0"]
[WhiteElo "2665"]
[BlackElo "2360"]
[TimeControl "180+1"]
[EndTime "8:38:28 PST"]
[Termination "krasavetc won on time"]

1. e4 {[%clk 0:03:00.9]} 1... e6 {[%clk 0:02:59.9]} 2. d4 {[%clk 0:03:00.5]}
2... d5 {[%clk 0:03:00.2]} 3. Nc3 {[%clk 0:03:01.2]} 3... Bb4 {[%clk 0:02:59]}
4. e5 {[%clk 0:03:00.9]} 4... Qd7 {[%clk 0:02:56.5]} 5. Bd2 {[%clk 0:02:58.6]}
5... b6 {[%clk 0:02:56.5]} 6. Nf3 {[%clk 0:02:56.1]} 6... Ba6 {[%clk 0:02:55.9]}
7. Bxa6 {[%clk 0:02:55.3]} 7... Nxa6 {[%clk 0:02:55.9]} 8. O-O {[%clk
0:02:55.5]} 8... Nh6 {[%clk 0:02:50.2]} 9. Bxh6 {[%clk 0:02:48.5]} 9... gxh6
{[%clk 0:02:50.3]} 10. Ne2 {[%clk 0:02:45.6]} 10... Bf8 {[%clk 0:02:46.3]} 11.
a4 {[%clk 0:02:42.8]} 11... c5 {[%clk 0:02:45.2]} 12. a5 {[%clk 0:02:39.7]}
12... b5 {[%clk 0:02:45.6]} 13. dxc5 {[%clk 0:02:37.8]} 13... Nxc5 {[%clk
0:02:44.9]} 14. a6 {[%clk 0:02:32]} 14... Bg7 {[%clk 0:02:35.6]} 15. Nf4 {[%clk
0:02:26.7]} 15... Qc7 {[%clk 0:02:29.8]} 16. Qe2 {[%clk 0:02:23.5]} 16... Rb8
{[%clk 0:02:22]} 17. Nh5 {[%clk 0:02:22.7]} 17... Rg8 {[%clk 0:02:19.3]} 18. Kh1
{[%clk 0:02:05.7]} 18... Bh8 {[%clk 0:02:19]} 19. Nf4 {[%clk 0:01:56.1]} 19...
Nd7 {[%clk 0:02:01.3]} 20. Nd3 {[%clk 0:01:55.5]} 20... Qc4 {[%clk 0:01:44.8]}
21. h3 {[%clk 0:01:37.3]} 21... Nc5 {[%clk 0:01:22.1]} 22. Rfe1 {[%clk
0:01:27.9]} 22... Ne4 {[%clk 0:01:17.8]} 23. Qe3 {[%clk 0:01:21.3]} 23... Rb6
{[%clk 0:00:53.8]} 24. Nd4 {[%clk 0:01:13.2]} 24... Qc7 {[%clk 0:00:42.1]} 25.
f3 {[%clk 0:01:10.8]} 25... Ng3+ {[%clk 0:00:37.4]} 26. Kg1 {[%clk 0:01:10.1]}
26... h5 {[%clk 0:00:34.6]} 27. c3 {[%clk 0:01:08.2]} 27... Kf8 {[%clk 0:00:21]}
28. Qh6+ {[%clk 0:00:56.2]} 28... Bg7 {[%clk 0:00:18.8]} 29. Qf4 {[%clk
0:00:54.6]} 29... Bh8 {[%clk 0:00:16.9]} 30. Nb4 {[%clk 0:00:48.8]} 30... Rg6
{[%clk 0:00:14.8]} 31. Nd3 {[%clk 0:00:43]} 31... Bg7 {[%clk 0:00:15]} 32. Qe3
{[%clk 0:00:41.4]} 32... Bh6 {[%clk 0:00:14.8]} 33. f4 {[%clk 0:00:42]} 33... h4
{[%clk 0:00:12.5]} 34. Qf3 {[%clk 0:00:40.8]} 34... Qe7 {[%clk 0:00:08.9]} 35.
Kh2 {[%clk 0:00:39.1]} 35... b4 {[%clk 0:00:07.9]} 36. Rab1 {[%clk 0:00:36.9]}
36... Rxa6 {[%clk 0:00:05.1]} 37. Nxb4 {[%clk 0:00:36.6]} 37... Rb6 {[%clk
0:00:05.1]} 38. Ra1 {[%clk 0:00:36]} 38... Qc7 {[%clk 0:00:03.1]} 39. Nd3 {[%clk
0:00:32.8]} 39... Nf5 {[%clk 0:00:02.9]} 40. Nxf5 {[%clk 0:00:32.5]} 40... exf5
{[%clk 0:00:03.4]} 41. Qxd5 {[%clk 0:00:31.2]} 1-0

[Event "Early-Titled-Tuesday-Blitz-December-26-2023"]
[Site "Chess.com"]
[Date "2023.12.26"]
[Round "4"]
[White "noblerone"]
[Black "Sofia_Blokhin"]
[Result "1-0"]
[WhiteElo "2523"]
[BlackElo "2321"]
[TimeControl "180+1"]
[EndTime "8:38:28 PST"]
[Termination "noblerone won by resignation"]

1. d4 {[%clk 0:03:00.9]} 1... g6 {[%clk 0:02:58.8]} 2. c4 {[%clk 0:02:59.7]}
2... Bg7 {[%clk 0:02:58.6]} 3. Nc3 {[%clk 0:03:00.3]} 3... f5 {[%clk 0:02:58.7]}
4. g3 {[%clk 0:02:53.8]} 4... Nf6 {[%clk 0:02:58.2]} 5. Bg2 {[%clk 0:02:51.5]}
5... O-O {[%clk 0:02:58]} 6. Nh3 {[%clk 0:02:52.1]} 6... d6 {[%clk 0:02:58]} 7.
O-O {[%clk 0:02:52.5]} 7... Nc6 {[%clk 0:02:53.2]} 8. Nf4 {[%clk 0:02:49.7]}
8... Qe8 {[%clk 0:02:49.7]} 9. Nfd5 {[%clk 0:02:43.5]} 9... Qd8 {[%clk
0:02:41.4]} 10. Nxf6+ {[%clk 0:02:38.7]} 10... Bxf6 {[%clk 0:02:39]} 11. Bh6
{[%clk 0:02:39.1]} 11... Re8 {[%clk 0:02:33]} 12. e3 {[%clk 0:02:26.9]} 12... e5
{[%clk 0:02:23.8]} 13. dxe5 {[%clk 0:02:03.9]} 13... Nxe5 {[%clk 0:02:21.8]} 14.
h4 {[%clk 0:01:52]} 14... Rb8 {[%clk 0:02:06.1]} 15. Rc1 {[%clk 0:01:45.7]}
15... Be6 {[%clk 0:02:04.9]} 16. b3 {[%clk 0:01:45.3]} 16... Ng4 {[%clk
0:01:35.2]} 17. Bf4 {[%clk 0:01:44.4]} 17... h6 {[%clk 0:01:28.6]} 18. f3 {[%clk
0:01:33.6]} 18... Ne5 {[%clk 0:01:19.1]} 19. Bxh6 {[%clk 0:01:27.3]} 19... Re7
{[%clk 0:01:16.2]} 20. Nd5 {[%clk 0:01:20.5]} 20... Bxd5 {[%clk 0:01:07.6]} 21.
Qxd5+ {[%clk 0:01:19.4]} 21... Kh8 {[%clk 0:01:02.9]} 22. Bf4 {[%clk 0:00:50.6]}
22... Rh7 {[%clk 0:01:02]} 23. Kf2 {[%clk 0:00:46]} 23... g5 {[%clk 0:00:54.1]}
24. hxg5 {[%clk 0:00:44.8]} 24... Bxg5 {[%clk 0:00:53.7]} 25. Rh1 {[%clk
0:00:45.4]} 25... Bxf4 {[%clk 0:00:48.6]} 26. Rxh7+ {[%clk 0:00:43.9]} 26...
Kxh7 {[%clk 0:00:48.3]} 27. exf4 {[%clk 0:00:39.9]} 27... c6 {[%clk 0:00:43.1]}
28. Rh1+ {[%clk 0:00:35.9]} 28... Kg7 {[%clk 0:00:27.5]} 29. Qe6 {[%clk
0:00:33.9]} 29... Nd3+ {[%clk 0:00:24.4]} 30. Ke3 {[%clk 0:00:30]} 30... Nc5
{[%clk 0:00:15.6]} 31. Qh6+ {[%clk 0:00:25.8]} 31... Kf7 {[%clk 0:00:15.2]} 32.
Qh7+ {[%clk 0:00:23.8]} 32... Ke8 {[%clk 0:00:11.5]} 33. Qg6+ {[%clk 0:00:22.2]}
33... Kd7 {[%clk 0:00:10.2]} 34. Rh7+ {[%clk 0:00:19.3]} 34... Kc8 {[%clk
0:00:07.3]} 35. Qxf5+ {[%clk 0:00:19.5]} 35... Nd7 {[%clk 0:00:07.6]} 36. Bh3
{[%clk 0:00:17.9]} 36... Qe8+ {[%clk 0:00:05.8]} 37. Kf2 {[%clk 0:00:17.4]} 1-0

[Event "Early-Titled-Tuesday-Blitz-December-26-2023"]
[Site "Chess.com"]
[Date "2023.12.26"]
[Round "4"]
[White "Zhigalko_Sergei"]
[Black "Shahdad2007"]
[Result "1-0"]
[WhiteElo "2887"]
[BlackElo "2336"]
[TimeControl "180+1"]
[EndTime "8:38:30 PST"]
[Termination "Zhigalko_Sergei won by checkmate"]

1. e4 {[%clk 0:03:00.9]} 1... c5 {[%clk 0:02:59.9]} 2. Nf3 {[%clk 0:03:00.6]}
2... d6 {[%clk 0:03:00.2]} 3. d4 {[%clk 0:03:00.9]} 3... cxd4 {[%clk 0:03:00.6]}
4. Qxd4 {[%clk 0:03:01.8]} 4... Nc6 {[%clk 0:02:53.6]} 5. Bb5 {[%clk 0:03:01.7]}
5... a6 {[%clk 0:02:49.8]} 6. Bxc6+ {[%clk 0:03:01.9]} 6... bxc6 {[%clk
0:02:50.4]} 7. c4 {[%clk 0:03:02.7]} 7... e5 {[%clk 0:02:49.2]} 8. Qd3 {[%clk
0:03:03]} 8... Be7 {[%clk 0:02:41]} 9. Nc3 {[%clk 0:03:02.8]} 9... Be6 {[%clk
0:02:37.8]} 10. O-O {[%clk 0:03:02.1]} 10... Nf6 {[%clk 0:02:06]} 11. c5 {[%clk
0:03:01.6]} 11... O-O {[%clk 0:02:05.1]} 12. cxd6 {[%clk 0:02:36.2]} 12... Qxd6
{[%clk 0:02:02.3]} 13. Qxd6 {[%clk 0:02:35.7]} 13... Bxd6 {[%clk 0:02:02.7]} 14.
Rd1 {[%clk 0:02:31.1]} 14... Rfd8 {[%clk 0:02:01.8]} 15. Bg5 {[%clk 0:02:29.5]}
15... Bc7 {[%clk 0:01:52.3]} 16. Rac1 {[%clk 0:02:15.8]} 16... h6 {[%clk
0:01:39.1]} 17. Bxf6 {[%clk 0:02:05.2]} 17... gxf6 {[%clk 0:01:40]} 18. h3
{[%clk 0:02:01.7]} 18... Rxd1+ {[%clk 0:01:38.4]} 19. Rxd1 {[%clk 0:02:01.7]}
19... Rd8 {[%clk 0:01:38.8]} 20. Rc1 {[%clk 0:02:01]} 20... Rd6 {[%clk
0:01:27.8]} 21. b3 {[%clk 0:01:59.2]} 21... Bb6 {[%clk 0:01:12.4]} 22. Na4
{[%clk 0:01:57.2]} 22... Ba7 {[%clk 0:01:12.9]} 23. Rc2 {[%clk 0:01:39.8]} 23...
Kf8 {[%clk 0:01:08]} 24. Kf1 {[%clk 0:01:18]} 24... Ke7 {[%clk 0:01:05.4]} 25.
Ke2 {[%clk 0:01:14.4]} 25... Kd7 {[%clk 0:01:02.6]} 26. Nc5+ {[%clk 0:01:12.2]}
26... Bxc5 {[%clk 0:01:02.4]} 27. Rxc5 {[%clk 0:01:13.1]} 27... Kc7 {[%clk
0:01:02.8]} 28. Rc3 {[%clk 0:00:59.5]} 28... Kb6 {[%clk 0:01:01.8]} 29. g4
{[%clk 0:00:43]} 29... c5 {[%clk 0:00:56.8]} 30. Nd2 {[%clk 0:00:35.9]} 30...
Rd4 {[%clk 0:00:50.9]} 31. Rf3 {[%clk 0:00:33.3]} 31... a5 {[%clk 0:00:31.9]}
32. Rxf6 {[%clk 0:00:32]} 32... a4 {[%clk 0:00:32.2]} 33. Rxh6 {[%clk
0:00:30.2]} 33... a3 {[%clk 0:00:30.2]} 34. Nc4+ {[%clk 0:00:11.8]} 34... Rxc4
{[%clk 0:00:29.4]} 35. bxc4 {[%clk 0:00:10.5]} 35... Ka5 {[%clk 0:00:29.8]} 36.
Rxe6 {[%clk 0:00:09.9]} 36... fxe6 {[%clk 0:00:29.8]} 37. Kd3 {[%clk 0:00:09.7]}
37... Kb4 {[%clk 0:00:30.3]} 38. h4 {[%clk 0:00:09.9]} 38... Ka5 {[%clk
0:00:30.4]} 39. h5 {[%clk 0:00:10.5]} 39... Kb6 {[%clk 0:00:31.1]} 40. h6 {[%clk
0:00:11.2]} 40... Kc7 {[%clk 0:00:31.9]} 41. h7 {[%clk 0:00:11.7]} 41... Kd7
{[%clk 0:00:32.8]} 42. h8=Q {[%clk 0:00:12.1]} 42... Ke7 {[%clk 0:00:33.7]} 43.
Qg7+ {[%clk 0:00:12]} 43... Kd6 {[%clk 0:00:33.9]} 44. g5 {[%clk 0:00:12.5]}
44... Kc6 {[%clk 0:00:34.8]} 45. Qxe5 {[%clk 0:00:12.5]} 45... Kb6 {[%clk
0:00:35.7]} 46. g6 {[%clk 0:00:12.8]} 46... Ka5 {[%clk 0:00:36.6]} 47. g7 {[%clk
0:00:13.2]} 47... Kb6 {[%clk 0:00:37.2]} 48. g8=Q {[%clk 0:00:13.2]} 48... Kc6
{[%clk 0:00:38.1]} 49. Qgxe6+ {[%clk 0:00:13.2]} 49... Kb7 {[%clk 0:00:39]} 50.
Qg7+ {[%clk 0:00:13.6]} 50... Kb8 {[%clk 0:00:38.5]} 51. Qeg8# {[%clk
0:00:14.2]} 1-0